[Event "1st Doppelbauer Kiel IM 2022"]
[Site "Kiel"]
[Date "2022.07.04"]
[Round "8.4"]
[White "Junge, Ralph"]
[Black "Kopylov, Daniel"]
[Result "1-0"]
[ECO "A45"]
[WhiteElo "2224"]
[BlackElo "2292"]
[Annotator "TA"]
[PlyCount "173"]
[EventDate "2022.06.30"]
[EventType "tourn"]
[EventCountry "GER"]
[SourceTitle "playchess.com"]
[Source "ChessBase"]
[SourceQuality "1"]
[TimeControl "40/5400+30:1800+30"]

{[%evp 14,173,32,37,34,-14,63,61,83,36,33,-23,-12,-35,-59,-53,0,-37,-45,-47,-42,-59,-45,-48,58,50,107,96,101,86,101,88,85,64,80,71,98,75,103,89,93,131,108,108,126,0,8,18,11,8,19,0,0,0,20,23,29,31,33,27,22,8,8,0,0,0,0,0,0,0,0,0,0,0,0,0,8,0,0,0,0,0,0,0,8,8,8,8,8,8,8,8,8,8,8,0,0,0,0,0,0,-8,0,0,0,-15,-16,-29963,0,0,0,-29962,-1155,-1144,-18,-16,0,0,0,-20,0,-7,-8,-8,-8,-8,-8,-26,-26,-26,0,0,0,0,0,0,8,8,6925,5999,5608,5608,5518,5327,29988,29989,29989,29985,29985,29986,29986,29987,29987,29988,29988,29989,29989,29990,29995,29996,29996,29997]} 1. d4 {[%emt 0:10:44]} Nf6 {[%emt 0:00:22]} 2. Bg5 {[%emt 0:00:04]} Ne4 {[%emt 0:00:32]} 3. Bf4 {[%emt 0:00:26]} c5 {[%emt 0:00:35]} 4. f3 {[%emt 0:00:12]} Qa5+ {[%emt 0:00:26]} 5. c3 {[%emt 0:00:28]} Nf6 {[%emt 0:00:23]} 6. d5 {[%emt 0:06:48]} e6 {[%emt 0:00:49]} 7. e4 {[%emt 0:02:58]} exd5 {[%emt 0:00:40]} 8. exd5 {[%emt 0:00:05]} d6 $1 {[%emt 0:00:25] A45: Trompowsky Attack.} 9. Qe2+ {[%emt 0:05:45]} (9. Qd2 $14) 9... Kd8 {[%emt 0:05:43]} (9... Be7 $1 $11) 10. Qd2 $14 {[%emt 0:02:45]} Be7 {[%emt 0:07:53] [#] White is slightly better.} 11. c4 $146 {[%emt 0:01:11]} (11. Na3 $16) ({Predecessor:} 11. Na3 Re8 12. Kf2 Bf5 13. Nc4 Qc7 14. a4 Nbd7 15. a5 h6 16. Ne2 g5 17. Ng3 {1-0 (30) Edgell,B (2130)-Fogg,M (1982) England 2016}) 11... Qxd2+ {[%emt 0:00:58]} 12. Nxd2 {[%emt 0:06:33]} (12. Bxd2 $14 b5 13. Ba5+ Kd7 14. cxb5) 12... Re8 {[%emt 0:01:54][%cal Of6d5]} (12... Nh5 $5 {[%cal Rh5f4]} 13. Bg3 Bf5 $11) 13. Kf2 {[%emt 0:06:13]} Nh5 {[%emt 0:10:33]} 14. Be3 {[%emt 0:00:55]} Bf6 {[%emt 0:03:00]} ({Black should try} 14... f5 $15 15. f4 Kc7) 15. Ne4 {[%emt 0:01:24]} Bxb2 {[%emt 0:01:45]} 16. Rb1 {[%emt 0:02:05]} Be5 {[%emt 0:00:26]} 17. Ne2 {[%emt 0:05:53]} f5 {[%emt 0:04:22]} 18. Ng5 {[%emt 0:01:12]} f4 {[%emt 0:01:57]} (18... Kc7 $15) 19. Bd2 {[%emt 0:00:49]} Kc7 {[%emt 0:19:52] [#]} (19... Re7 $14) 20. g4 $1 $16 {[%emt 0:05:39]} fxg3+ {[%emt 0:03:23]} 21. hxg3 {[%emt 0:00:09]} Nf6 {[%emt 0:01:40]} 22. Bh3 {[%emt 0:02:11]} ({Avoid the trap} 22. Nxh7 $2 Nxh7 23. f4 (23. Rxh7 $2 Bf5 $19) 23... Bf5 24. fxe5 Bxb1 $19) 22... h6 {[%emt 0:06:53]} 23. Bxc8 {[%emt 0:10:42]} ({But not} 23. Ne6+ Bxe6 24. Bxe6 Nbd7 $11) 23... Kxc8 {[%emt 0:00:07]} 24. Ne6 {[%emt 0:00:16]} Nbd7 {[%emt 0:02:59]} 25. Nxg7 {[%emt 0:04:28] White is much more active.} (25. f4 {looks sharper.} Ne4+ 26. Ke3 Nxd2 27. Kxd2 Bf6 28. g4) 25... Ng4+ {[%emt 0:03:28]} 26. fxg4 {[%emt 0:00:21]} Bxg7 {[%emt 0:00:05]} 27. Bxh6 {[%emt 0:00:59]} Bxh6 {[%emt 0:00:51]} 28. Rxh6 {[%emt 0:00:02]} Ne5 {[%emt 0:01:08][%csl LRc4,LRg4]} 29. Rxd6 {[%emt 0:04:54]} ({White should play} 29. g5 $16) 29... Kc7 $132 {[%emt 0:03:19][%mdl 2048] Black is not keeping still} 30. Re6 {[%emt 0:03:48] And now g5 would win.} Nxg4+ {[%emt 0:03:27]} 31. Kf3 {[%emt 0:01:24]} Ne5+ {[%emt 0:01:00]} 32. Ke4 {[%emt 0:01:48] Black must now prevent Kxe5.} Nxc4 {[%emt 0:00:34]} 33. Rh1 {[%emt 0:00:43] Hoping for Rh7+.} Nd2+ {[%emt 0:09:28]} 34. Kd3 {[%emt 0:05:02]} Rxe6 {[%emt 0:00:49]} 35. Rh7+ {[%emt 0:00:39]} Kd6 {[%emt 0:04:17][%cal Oe6e2]} 36. dxe6 $14 {[%emt 0:00:13][%mdl 4096] Endgame KRN-KRN} Nf3 {[%emt 0:00:09]} 37. Rxb7 {[%emt 0:05:23] White wants to play Nf4.} Kxe6 {[%emt 0:00:17]} 38. Kc4 {[%emt 0:01:49]} Kd6 {[%emt 0:00:15]} 39. Kb5 {[%emt 0:01:13]} Re8 {[%emt 0:00:48]} 40. Nc3 {[%emt 0:01:26]} Re3 {[%emt 0:00:29]} 41. Na4 {[%emt 0:04:01]} Nd4+ {[%emt 0:02:48]} 42. Kc4 {[%emt 0:00:21]} Ne6 {[%emt 0:20:05]} 43. Rxa7 {[%emt 0:01:51]} Re4+ {[%emt 0:00:43]} 44. Kc3 {[%emt 0:03:13]} Nc7 {[%emt 0:00:29]} 45. Ra5 {[%emt 0:02:47] Prevents Nb5+.} Nd5+ {[%emt 0:00:19]} 46. Kd2 {[%emt 0:06:21]} Rd4+ {[%emt 0:00:53]} 47. Kc1 {[%emt 0:00:46]} c4 {[%emt 0:00:50]} 48. Ra6+ {[%emt 0:00:47]} Ke5 {[%emt 0:01:44]} 49. Rh6 {[%emt 0:01:04]} Ne3 {[%emt 0:04:55]} 50. Rh5+ {[%emt 0:01:22]} Kd6 {[%emt 0:00:26]} 51. Nc3 {[%emt 0:00:35]} Rd3 {[%emt 0:00:21]} 52. Ne4+ {[%emt 0:02:12]} Kc6 {[%emt 0:00:08]} 53. a4 {[%emt 0:00:58]} Rd4 {[%emt 0:01:46]} 54. Rh6+ {[%emt 0:00:55]} Kd5 {[%emt 0:00:50]} 55. Nc3+ {[%emt 0:02:46]} Kc5 {[%emt 0:00:14]} 56. Re6 {[%emt 0:01:00]} Rd3 {[%emt 0:00:48]} 57. Nb5 {[%emt 0:01:02]} Rd1+ {[%emt 0:02:00]} 58. Kb2 {[%emt 0:00:02]} Re1 {[%emt 0:00:09]} 59. Nc7 {[%emt 0:01:35]} Re2+ {[%emt 0:00:02][%mdl 1024] Black has compensation.} 60. Kb1 $2 {[%emt 0:02:14][%mdl 8192]} (60. Ka3 $11) 60... Re1+ $2 {[%emt 0:01:03]} (60... c3 {mates} 61. Na6+ Kd5 62. Re8 c2+ 63. Kb2 Nd1+ 64. Kc1 Rxe8 65. Kxc2 Ne3+ 66. Kd3 Kd6 67. Nb4 Rb8 68. Na2 Rb3+ 69. Ke2 Nc4 70. Kd1 Rxg3 71. Nb4 Rg2 72. Nc2 Nb2+ 73. Kc1 Nxa4 74. Ne1 Re2 75. Nd3 Nc3 76. Nc5 Kd5 77. Nb3 Kc4 78. Nc5 Re7 79. Kc2 Kxc5 80. Kxc3 Rd7 81. Kb3 Rd3+ 82. Kc2 Kc4 83. Kb2 Rd2+ 84. Kc1 Kc3 85. Kb1 Rd1+ 86. Ka2 Rh1 87. Ka3 Ra1#) 61. Kb2 $11 {[%emt 0:00:51]} Re2+ $2 {[%emt 0:00:13][%mdl 8192]} (61... Kd4 $11 62. Nb5+ Kc5) 62. Kb1 {[%emt 0:00:10]} c3 {[%emt 0:00:28]} 63. Na6+ {[%emt 0:00:59] [#]} Kd4 $2 {[%emt 0:00:54]} ({Better is} 63... Kd5 $1 $19 {[%cal Rd5e6]} 64. Re8 c2+ 65. Kb2 Nd1+ 66. Kc1 Rxe8 67. Kxc2 Ne3+ 68. Kd3 Kd6) 64. Rd6+ {[%emt 0:00:23]} Kc4 {[%emt 0:01:07]} 65. Rc6+ {[%emt 0:00:42]} Kd4 {[%emt 0:00:01]} (65... Kb3 $5 66. Nc5+ Ka3 $15) 66. Rd6+ {[%emt 0:00:08]} Kc4 {[%emt 0:00:01]} 67. Rc6+ {[%emt 0:00:18]} Kb3 {[%emt 0:01:02][%cal Re2e1]} 68. Nc5+ {[%emt 0:00:42]} Ka3 {[%emt 0:02:10][%cal Re2e1]} 69. Nd3 {[%emt 0:00:32] Against Re1+} c2+ {[%emt 0:00:00]} 70. Kc1 {[%emt 0:00:46]} Kb3 {[%emt 0:00:00]} 71. a5 {[%emt 0:02:12]} Nd5 {[%emt 0:00:07]} 72. a6 {[%emt 0:01:48] Threatens to win with a7.} Nc3 $1 {[%emt 0:00:21][%cal Rc3a2]} 73. Rb6+ {[%emt 0:00:13]} Kc4 {[%emt 0:00:53] ( -> ...Na2+)} 74. Nb4 {[%emt 0:00:44] Against Na2+} Na4 {[%emt 0:00:53]} 75. Rb8 {[%emt 0:01:03] Strongly threatening a7.} Kc3 $2 {[%emt 0:00:40][%mdl 8192]} (75... Nc5 $11 76. Nxc2 Nxa6) 76. Nd5+ $18 {[%emt 0:00:39]} Kd4 {[%emt 0:00:32]} 77. a7 {[%emt 0:00:33]} Nc5 {[%emt 0:00:05]} 78. Nf4 {[%emt 0:00:26]} ({Less strong is} 78. Rb4+ Ke5 79. Nf4 Re1+ 80. Kxc2 Ra1 $14) 78... Nd3+ {[%emt 0:00:41]} 79. Nxd3 {[%emt 0:00:11] White mates.} Kxd3 {[%emt 0:00:01] KR-KR} 80. Rd8+ {[%emt 0:00:13]} Kc3 {[%emt 0:00:05]} 81. Rc8+ {[%emt 0:00:18]} Kd3 {[%emt 0:00:12]} 82. a8=Q {[%emt 0:00:35]} Re1+ {[%emt 0:00:55]} 83. Kb2 {[%emt 0:00:06]} Rb1+ {[%emt 0:00:12]} 84. Ka2 {[%emt 0:00:03]} c1=Q {[%emt 0:00:09]} 85. Qf3+ {[%emt 0:00:45]} Kd2 {[%emt 0:00:22]} 86. Rd8+ {[%emt 0:01:05]} Ke1 {[%emt 0:00:17]} 87. Re8+ {[%emt 0:00:13] Quite a comeback for White.  Weighted Error Value: White=0.26 (precise) /Black=0.21 (precise)} 1-0

[Event "1st Doppelbauer Kiel IM 2022"]
[Site "Kiel"]
[Date "2022.07.04"]
[Round "8.5"]
[White "Ermitsch, Magnus"]
[Black "Fischer, Daniel"]
[Result "1-0"]
[ECO "B48"]
[WhiteElo "2222"]
[BlackElo "2367"]
[Annotator "TA"]
[PlyCount "71"]
[EventDate "2022.06.30"]
[EventType "tourn"]
[EventCountry "GER"]
[SourceTitle "playchess.com"]
[Source "ChessBase"]
[SourceQuality "1"]
[TimeControl "40/5400+30:1800+30"]

{[%evp 11,71,41,35,5,10,14,35,37,33,17,42,45,23,33,25,22,64,52,48,25,184,65,74,85,128,110,246,231,248,251,256,245,261,254,244,230,247,243,241,235,210,193,235,215,239,228,232,231,5281,5277,1412,693,666,664,29985,29986,29986,29987,29987,29974,29987,29968]} 1. e4 {[%emt 0:00:07]} c5 {[%emt 0:00:04]} 2. Nf3 {[%emt 0:00:21]} e6 {[%emt 0:00:05]} 3. d4 {[%emt 0:00:06]} cxd4 {[%emt 0:00:03]} 4. Nxd4 {[%emt 0:00:06]} Nc6 {[%emt 0:00:04]} 5. Nc3 {[%emt 0:00:26]} Qc7 {[%emt 0:00:07]} 6. Be3 {[%emt 0:00:13]} a6 {[%emt 0:00:10]} 7. g4 {[%emt 0:00:46] B48: Sicilian: Taimanov: 5 Nc3 Qc7 6 Be3 a6 without Be2.} Nxd4 {[%emt 0:01:07]} 8. Qxd4 {[%emt 0:00:13]} b5 {[%emt 0:00:29]} 9. O-O-O {[%emt 0:01:03] White is slightly better.} Bb7 {[%emt 0:00:08]} 10. f3 {[%emt 0:00:22]} Rc8 {[%emt 0:01:02]} 11. Qd2 {[%emt 0:00:13][%cal Of1b5]} Bb4 {[%emt 0:02:44]} 12. Bd4 {[%emt 0:00:31]} f6 {[%emt 0:00:33]} 13. a3 {[%emt 0:10:50] [#]} Bxa3 $146 {[%emt 0:07:40]} ({Predecessor:} 13... Bxc3 14. Bxc3 d5 15. Bd3 Ne7 16. g5 e5 17. gxf6 gxf6 18. Ba5 Qd6 19. Rhg1 Kf7 20. exd5 {1-0 (29) Subrota,B (2202)-Swarnavo,C (1945) Dhaka 2022}) 14. Bxb5 {[%emt 0:15:10][%cal Bf1b5,Bb5a4,Ba4b3][%mdl 32]} Bb4 {[%emt 0:27:22]} 15. Ba4 $36 {[%emt 1:07:33][%mdl 2048] White is more active.} Kf7 $2 {[%emt 0:21:39] [#]} (15... Bc6 $11 {and Black has nothing to worry.} 16. Bb3 Ne7) 16. Qe3 {[%emt 0:00:00]} ({Better is} 16. g5 $1 $18) 16... Bc6 $1 $14 {[%emt 0:04:16] And now ...Bxa4 would win.} 17. Bb3 {[%emt 0:00:00][%cal Oc3d5] Black is now going downhill.} Ne7 {[%emt 0:02:08] Prevents Nd5.} 18. f4 {[%emt 0:00:00][%cal Bf3f4,Bf4f5][%mdl 32] Threatens to win with f5. White is more active.} h6 {[%emt 0:10:18]} (18... a5 $16 {might work better.}) 19. f5 $18 {[%emt 0:00:00]} Bd6 {[%emt 0:01:54] ...Bf4 is the strong threat.} 20. Rhf1 {[%emt 0:00:00] Against Bf4} Be5 {[%emt 0:00:26]} 21. h4 {[%emt 0:00:00] Hoping for g5.} Rb8 {[%emt 0:02:47]} 22. g5 {[%emt 0:00:00]} hxg5 {[%emt 0:00:41]} 23. hxg5 {[%emt 0:00:00]} Rb4 {[%emt 0:01:49]} 24. gxf6 {[%emt 0:00:00]} ({Don't do} 24. Bc5 $6 Rxb3 25. cxb3 exf5) 24... gxf6 {[%emt 0:00:59]} 25. fxe6+ {[%emt 0:00:00]} ({Much less strong is} 25. Bc5 Rb7 26. Kb1 Rh2 27. fxe6+ dxe6) 25... dxe6 {[%emt 0:00:05]} 26. Bc5 {[%emt 0:00:00]} Rbb8 {[%emt 0:00:39]} 27. Qd3 {[%emt 0:03:15]} Bb5 {[%emt 0:07:26] [#]} 28. Bxe6+ $1 {[%emt 0:01:03][%mdl 512]} Kxe6 {[%emt 0:02:26]} 29. Nxb5 {[%emt 0:00:40] Threatening mate with Qb3+. The board is on fire.} Bf4+ $2 {[%emt 0:03:37] [#]} (29... Qxc5 30. Qb3+ Nd5 31. Rxd5 Rxb5 32. Rxc5+ Rxb3 33. cxb3 Rh3 34. Rc6+ Kf7) 30. Rxf4 $1 {[%emt 0:00:57][%mdl 512]} Qxf4+ {[%emt 0:00:14]} 31. Be3 {[%emt 0:00:17]} (31. Kb1 $142 Kf7 32. Qc4+ Kg6 33. Rg1+ Kh6 {[#]} 34. Qb3 $1) 31... Qxe3+ {[%emt 0:01:16]} 32. Qxe3 {[%emt 0:00:02] Qb3+ would kill now.} axb5 {[%emt 0:00:10]} 33. Qb3+ {[%emt 0:00:27] White mates.} Ke5 {[%emt 0:00:04]} 34. Qb4 {[%emt 0:00:15]} Ke6 {[%emt 0:00:32]} 35. Qd6+ {[%emt 0:00:21]} Kf7 {[%emt 0:00:04]} 36. Rf1 {[%emt 0:00:10] Weighted Error Value: White=0.25 (precise) /Black=0.45} 1-0

[Event "1st Doppelbauer Kiel IM 2022"]
[Site "Kiel"]
[Date "2022.07.05"]
[Round "9.1"]
[White "Fischer, Daniel"]
[Black "Beeck, Mats"]
[Result "1-0"]
[ECO "C93"]
[WhiteElo "2367"]
[BlackElo "2169"]
[Annotator "TA"]
[PlyCount "61"]
[EventDate "2022.06.30"]
[EventType "tourn"]
[EventCountry "GER"]
[SourceTitle "playchess.com"]
[Source "ChessBase"]
[SourceQuality "1"]
[TimeControl "40/5400+30:1800+30"]

{[%evp 27,61,33,24,3,22,0,0,0,0,0,0,0,0,-9,0,-4,31,31,33,25,91,104,117,97,146,138,143,143,133,67,299,289,806,783,891,886]} 1. e4 {[%emt 0:00:03]} e5 {[%emt 0:00:12]} 2. Nf3 {[%emt 0:00:04]} Nc6 {[%emt 0:00:09]} 3. Bb5 {[%emt 0:00:04][%cal Bf1b5,Bb5a4,Ba4b3][%mdl 32]} a6 {[%emt 0:01:40]} 4. Ba4 {[%emt 0:00:04]} Nf6 {[%emt 0:00:04]} 5. O-O {[%emt 0:00:09]} Be7 {[%emt 0:02:14]} 6. Re1 {[%emt 0:00:10]} b5 {[%emt 0:00:06]} 7. Bb3 {[%emt 0:00:04]} d6 {[%emt 0:02:01]} 8. c3 {[%emt 0:00:40]} O-O {[%emt 0:00:07]} 9. h3 {[%emt 0:00:22]} Re8 {[%emt 0:01:26]} 10. d4 {[%emt 0:05:24]} Bb7 {[%emt 0:00:15]} 11. a3 {[%emt 0:03:14][%cal Ba2a3,Ba3a4][%mdl 32]} h6 {[%emt 0:01:05]} 12. Nbd2 {[%emt 0:02:26]} Bf8 {[%emt 0:05:06]} 13. Bc2 {[%emt 0:00:53]} Nb8 {[%emt 0:00:34]} 14. b3 {[%emt 0:08:48]} Nbd7 {[%emt 0:00:20]} 15. a4 {[%emt 0:09:41] C93: Closed Ruy Lopez: Smyslov Variation.} b4 {[%emt 0:13:39] [#]} 16. cxb4 $146 {[%emt 0:14:19]} (16. Bb2 {feels hotter.} bxc3 17. Bxc3 exd4 18. Bxd4 a5 19. Rc1) ({Predecessor:} 16. Bb2 bxc3 17. Bxc3 exd4 18. Bxd4 c5 19. Bb2 Qc7 20. Bd3 {½-½ (20) Cvak,R (2353)-Shishkov,P (2353) ICCF email 2017}) 16... exd4 {[%emt 0:03:15]} 17. Nxd4 {[%emt 0:01:40] The position is equal.} d5 {[%emt 0:00:20]} 18. exd5 {[%emt 0:01:14]} Rxe1+ {[%emt 0:01:31]} 19. Qxe1 {[%emt 0:00:30]} Nxd5 {[%emt 0:01:20]} 20. b5 {[%emt 0:18:46]} axb5 {[%emt 0:06:50]} 21. Nxb5 {[%emt 0:00:31]} Bb4 {[%emt 0:06:47]} (21... Qf6 $5 {[%cal Rf6a1]} 22. Rb1 Nb4 $11) 22. Qe4 {[%emt 0:06:49] [#] Qh7+ is the strong threat.} N7f6 {[%emt 0:00:23] Against Qh7+} 23. Qf3 {[%emt 0:04:20]} Ra6 {[%emt 0:19:05]} (23... c6 $11 {keeps the balance.} 24. Na3 Bc3) 24. Nc4 $16 {[%emt 0:02:17]} Ba8 {[%emt 0:05:05]} 25. Bb2 {[%emt 0:05:26]} Qe8 {[%emt 0:05:59]} (25... Nc3 $142 26. Qf5 g6) 26. Qg3 {[%emt 0:05:02]} Re6 {[%emt 0:05:18]} 27. Nxc7 {[%emt 0:01:20] White is much more active.} Nxc7 {[%emt 0:00:46]} 28. Qxc7 $40 {[%emt 0:00:02][%mdl 128] Black needs to defend precisely.} ({Better is} 28. Bxf6 $16 Rxf6 29. Qxc7) 28... Ne4 $2 {[%emt 0:04:16]} (28... Re1+ $14 29. Rxe1 Qxe1+ 30. Kh2 Qxf2) 29. Rd1 $18 {[%emt 0:01:39]} Nd2 $2 {[%emt 0:06:42]} (29... Be7 30. Re1 Bf8) 30. Nxd2 {[%emt 0:03:21]} Rc6 {[%emt 0:03:32] [#]} 31. Qg3 $1 {[%emt 0:00:23] Weighted Error Value: White=0.13 (very precise) /Black=0.38} 1-0